fUST/lending_fUST_20250809
["ID","MTS","AMOUNT","RATE_DAILY","PERIOD"]
[378051718,1754700633711,-460.0,0.0002282,2]
[378051720,1754700633724,-460.0,0.0002282,2]
[378051722,1754700633733,-559.48,0.0002282,2]
[378051724,1754700633744,-460.0,0.0002282,2]
[378051726,1754700633753,-460.0,0.0002282,2]
[378051728,1754700633763,-556.43,0.0002282,2]
[378051730,1754700633772,-460.0,0.0002282,2]
[378051733,1754700633782,-461.4,0.0002282,2]
[378051734,1754700633791,-460.0,0.0002282,2]
[378051736,1754700633800,-502.58499416,0.00022872,2]
[378051738,1754700633810,-556.82018342,0.00022872,2]
[378051740,1754700633819,-500.0,0.00022872,2]
[378051742,1754700633829,-500.0,0.00023005,2]
[378051744,1754700633840,-460.0,0.00023093,2]
[378051747,1754700633850,-460.0,0.00023093,2]
[378051748,1754700633860,-460.0,0.00023093,2]
[378051750,1754700633871,-1057.22,0.00023093,2]
[378051752,1754700633881,-460.0,0.00023093,2]
[378051754,1754700633891,-531.92,0.00023093,2]
[378051757,1754700633905,-460.0,0.00023094,2]
[378051759,1754700633915,-460.0,0.00023094,2]
[378051761,1754700633929,-559.48,0.00023094,2]
[378051763,1754700633939,-460.0,0.00023094,2]
[378051765,1754700633950,-460.0,0.00023094,2]
[378051766,1754700633964,-556.43,0.00023094,2]
[378051768,1754700633974,-460.0,0.00023094,2]
[378051770,1754700633984,-461.4,0.00023094,2]
[378051772,1754700633994,-460.0,0.00023094,2]
[378051773,1754700634005,-1083.56593352,0.00023177,2]
[378051775,1754700634015,-177.03638133,0.0002332,2]
[378051777,1754700634025,-179.85379641,0.00023341,2]
[378051779,1754700634035,-460.0,0.00023367,2]
[378051781,1754700634044,-460.0,0.00023367,2]
[378051783,1754700634053,-1057.22,0.00023367,2]
[378051785,1754700634063,-460.0,0.00023367,2]
[378051787,1754700634073,-531.92,0.00023367,2]
[378051789,1754700634083,-401.41804691,0.00023368,2]
[378051792,1754700634101,-58.58195309,0.00023368,2]
[378051794,1754700634112,-460.0,0.00023368,2]
[378051796,1754700634122,-559.48,0.00023368,2]
[378051798,1754700634132,-246.36051501,0.00023368,2]
[378051800,1754700634142,-460.0,0.00023368,2]
[378051802,1754700634152,-556.43,0.00023368,2]
[378051804,1754700634161,-460.0,0.00023368,2]
[378051806,1754700634172,-461.4,0.00023368,2]
[378051808,1754700634183,-460.0,0.00023368,2]
[378051810,1754700634192,-200.0,0.00023383,15]
[378051812,1754700634202,-300.0,0.00023383,15]
[378051814,1754700634211,-1173.21133865,0.00023409,2]
[378051951,1754700640778,-500.0,0.00022871,2]
[378051952,1754700640787,-500.0,0.00022871,2]
[378051953,1754700640797,-399.85395858,0.00022871,2]
[378051954,1754700640806,-190.64526284,0.00022871,2]
[378051967,1754700643895,-460.0,0.00021998,2]
[378051968,1754700643905,-309.35473716,0.00022871,2]
[378051969,1754700643914,-326.11426211,0.00022871,2]
[378051981,1754700646675,-173.88573789,0.00022871,2]
[378051982,1754700646685,-500.0,0.00022871,2]
[378051983,1754700646695,-500.0,0.00022871,2]
[378051984,1754700646705,-500.0,0.00022871,2]
[378051985,1754700646714,-500.0,0.00022871,2]
[378051986,1754700646724,-619.25011285,0.00022871,2]
[378051987,1754700646733,-500.0,0.00022871,2]
[378051988,1754700646743,-500.0,0.00022871,2]
[378051989,1754700646753,-500.0,0.00022871,2]
[378051990,1754700646762,-420.68124423,0.00022871,2]
[378051991,1754700646772,-500.0,0.00022871,2]
[378051992,1754700646782,-500.0,0.00022871,2]
[378051993,1754700646792,-500.0,0.00022871,2]
[378051994,1754700646801,-500.0,0.00022871,2]
[378051995,1754700646811,-500.0,0.00022871,2]
[378051996,1754700646820,-334.86117679,0.00022871,2]
[378051997,1754700646829,-440.22,0.0002306,2]
[378051998,1754700646839,-527.96,0.00023093,2]
[378051999,1754700646849,-527.96,0.00023367,2]
[378052000,1754700646858,-313.27752636,0.00023409,2]
[378052001,1754700646878,-3888.33354818,0.00023409,2]
[378052002,1754700646890,-822.40645182,0.0002342,2]
[378052003,1754700646903,-177.59354818,0.0002342,2]
[378052004,1754700646912,-600.0,0.0002352,2]
[378052005,1754700646922,-797.25539938,0.0002359,10]
[378052006,1754700646936,-342.89460062,0.0002359,10]
[378052007,1754700646946,-237.21,0.0002359,3]
[378052008,1754700646956,-240.18539938,0.0002359,3]
[378052009,1754700646968,-471.48460062,0.0002359,3]
[378052010,1754700646978,-950.13,0.0002359,10]
[378052011,1754700646988,-81.52682938,0.00023599,2]
[378052012,1754700647001,-280.7705656,0.00023599,2]
[378052013,1754700647012,-916.86715737,0.00023599,2]
[378052014,1754700647022,-239.55616133,0.00023599,2]
[378052015,1754700647033,-527.3554621,0.00023599,2]
[378052019,1754700671609,150.59680683,0.00027308,30]
[378052020,1754700703845,150.806318,0.00026596,30]
[378052021,1754700724030,563.8100699,0.00021077,2]
[378052022,1754700731702,4837.3401719,0.000199,2]
[378052023,1754700847589,10026.3679576,0.00021296,2]
[378052024,1754700857025,2377.59970034,0.0002145,2]
[378052025,1754700857048,2622.40029966,0.0002145,2]
[378052026,1754700874200,5000.0,0.0002145,2]
[378052027,1754700894972,348.210742,0.00021005,2]
[378052028,1754700895463,317.09149327,0.00021338,2]
[378052029,1754700923032,5048.69238184,0.000199,2]
[378052032,1754701001879,6132.0158052,0.00021277,2]
[378052033,1754701025323,375.87337994,0.00021077,2]
[378052034,1754701122029,4880.39206035,0.000199,2]
[378052035,1754701124103,1758.26223397,0.00031645,30]
[378052036,1754701196818,225.07597016,0.00021005,2]
[378052037,1754701303867,4717.71232486,0.000199,2]
[378052038,1754701306171,150.806318,0.00026596,30]
[378052039,1754701316479,167.921844,0.00013699,2]
[378052041,1754701320770,2464.61369872,0.0002145,2]
[378052042,1754701320793,2535.38630128,0.0002145,2]
[378052043,1754701327038,250.58225329,0.00021267,2]
[378052044,1754701490974,4552.14832353,0.000199,2]
[378052046,1754701629775,167.05483553,0.0001935,2]
[378052047,1754701634302,-182.40459141,0.00021601,2]
[378052048,1754701634327,-231.38797842,0.00021655,2]
[378052049,1754701663915,24794.82828637,0.00021145,2]
[378052050,1754701663937,105.17171363,0.00021145,2]
[378052051,1754701669837,5000.0,0.0002145,2]
[378052052,1754701679193,4388.87422035,0.000199,2]
[378052053,1754701685413,5000.0,0.0002145,2]
[378052054,1754701701813,5000.0,0.0002145,2]
[378052060,1754701717831,5000.0,0.0002145,2]
[378052061,1754701721207,245.10409949,0.00020943,2]
[378052065,1754701733072,5000.0,0.0002145,2]
[378052066,1754701748601,2560.84996653,0.0002145,2]
[378052067,1754701748630,2439.15003347,0.0002145,2]
[378052070,1754701760362,-23906.86986753,0.00021501,2]
[378052071,1754701760382,-182.40459141,0.00021601,2]
[378052072,1754701760404,-277.34510713,0.00021601,2]
[378052073,1754701760427,-4388.87422023,0.00021655,2]
[378052074,1754701760450,-209.3715591,0.00021701,2]
[378052075,1754701760470,-460.0,0.00021998,2]
[378052076,1754701760491,-741.25,0.00022,2]
[378052077,1754701760513,-237.0,0.00022018,2]
[378052078,1754701760537,-182.40459141,0.00022169,2]
[378052079,1754701760556,-986.0,0.00022267,2]
[378052080,1754701760577,-300.0,0.00022267,2]
[378052081,1754701760599,-460.0,0.00022268,2]
[378052082,1754701760620,-460.0,0.00022268,2]
[378052083,1754701760640,-460.0,0.00022268,2]
[378052084,1754701760662,-460.0,0.00022268,2]
[378052085,1754701760683,-460.0,0.00022268,2]
[378052086,1754701760703,-307.51503,0.00022268,2]
[378052087,1754701760725,-468.99,0.00022268,2]
[378052088,1754701760746,-460.0,0.00022268,2]
[378052089,1754701760766,-460.0,0.00022268,2]
[378052090,1754701760787,-460.0,0.00022268,2]
[378052091,1754701760817,-460.0,0.00022268,2]
[378052092,1754701760839,-460.0,0.00022268,2]
[378052093,1754701760859,-511.44857748,0.00022268,2]
[378052094,1754701760879,-460.0,0.00022268,2]
[378052095,1754701760901,-460.0,0.00022268,2]
[378052096,1754701760927,-460.0,0.00022268,2]
[378052097,1754701760949,-185.7,0.00022268,2]
[378052098,1754701760970,-460.0,0.00022268,2]
[378052099,1754701760991,-460.0,0.00022268,2]
[378052100,1754701761013,-460.0,0.00022268,2]
[378052101,1754701761034,-460.0,0.00022268,2]
[378052102,1754701761056,-559.74,0.00022268,2]
[378052103,1754701761078,-905.4,0.00022268,2]
[378052104,1754701761100,-370.74,0.00022268,2]
[378052105,1754701761121,-460.0,0.00022269,2]
[378052106,1754701761142,-460.0,0.00022269,2]
[378052107,1754701761163,-460.0,0.00022269,2]
[378052108,1754701761184,-48.31460238,0.00022269,2]
[378052262,1754701833064,253.263649,0.00021389,2]
[378052289,1754701837899,-204.654601,0.00021924,2]
[378052290,1754701837909,-346.93268959,0.00022,2]
[378052333,1754701862829,4096.28260578,0.000199,2]
[378052334,1754701931609,150.0,0.00020168,2]
[378052335,1754701956380,5000.0,0.0002145,2]
[378052336,1754701971782,5000.0,0.0002145,2]
[378052337,1754701988264,5000.0,0.0002145,2]
[378052338,1754701993295,10361.30371175,0.00021195,2]
[378052339,1754701993318,8145.25927185,0.00021195,2]
[378052340,1754702004672,5000.0,0.0002145,2]
[378052341,1754702021407,5000.0,0.0002145,2]
[378052342,1754702038114,4409.60236071,0.000199,2]
[378052344,1754702100786,339.082833,0.00021005,2]
[378052345,1754702101169,230.49880755,0.00021031,2]
[378052346,1754702226653,5000.0,0.0002145,2]
[378052347,1754702232775,282.0388169,0.00019555,2]
[378052348,1754702236129,3893.51790999,0.000199,2]
[378052349,1754702236166,642.34147647,0.000199,2]
[378052350,1754702242605,5000.0,0.0002145,2]
[378052351,1754702247566,207.973977,0.00021243,2]
[378052352,1754702258990,5000.0,0.0002145,2]
[378052353,1754702274420,5000.0,0.0002145,2]
[378052355,1754702284626,160.510005,0.00013699,2]
[378052356,1754702348180,666.0,0.00021201,2]
[378052357,1754702403158,360.5665121,0.0002103,2]
[378052358,1754702403571,180.28325605,0.0002134,2]
[378052359,1754702418087,4383.7936795,0.000199,2]
[378052365,1754702468960,1000.0,0.00021189,2]
[378052366,1754702534235,433.2135741,0.00019555,2]
[378052367,1754702597398,4237.67304309,0.000199,2]
[378052368,1754702616763,178.1014109,0.00021234,2]
[378052374,1754702790093,4093.12806828,0.000199,2]
[378052379,1754702835383,-405.48617448,0.00021655,2]
[378052380,1754702835757,288.8090494,0.0001935,2]
[378052381,1754702837700,210.769382,0.00021241,2]
[378052382,1754702861357,240270.9580608,0.00031651,30]
[378052387,1754702951646,256.83656611,0.00021268,2]
[378052388,1754702951667,2810.16343389,0.00021268,2]
[378052389,1754702965696,3943.20715211,0.000199,2]
[378052390,1754702967092,-3943.20715203,0.00021655,2]
[378052391,1754702967114,-204.63058983,0.000219,2]
[378052392,1754702967138,-277.34510713,0.000219,2]
[378052393,1754702967158,-213.06731041,0.00022,2]
[378052394,1754702967178,-658.88,0.00022,2]
[378052395,1754702967199,-1200.0,0.00022265,2]
[378052396,1754702967219,-300.0,0.00022265,2]
[378052397,1754702967243,-300.0,0.00022266,2]
[378052398,1754702967264,-300.0,0.00022266,2]
[378052399,1754702967285,-460.0,0.00022266,2]
[378052400,1754702967434,-460.0,0.00022266,2]
[378052401,1754702967455,-460.0,0.00022266,2]
[378052402,1754702967476,-460.0,0.00022266,2]
[378052403,1754702967496,-460.0,0.00022266,2]
[378052404,1754702967518,-460.0,0.00022266,2]
[378052405,1754702967537,-288.4083232,0.00022266,2]
[378052406,1754702967558,-470.32,0.00022266,2]
[378052407,1754702967579,-460.0,0.00022266,2]
[378052408,1754702967599,-460.0,0.00022266,2]
[378052409,1754702967620,-460.0,0.00022266,2]
[378052410,1754702967640,-318.45887208,0.00022266,2]
[378052411,1754702967661,-460.0,0.00022266,2]
[378052412,1754702967682,-460.0,0.00022266,2]
[378052413,1754702967702,-460.0,0.00022266,2]
[378052414,1754702967722,-460.0,0.00022266,2]
[378052415,1754702967742,-460.0,0.00022266,2]
[378052416,1754702967762,-460.0,0.00022266,2]
[378052417,1754702967781,-578.34499868,0.00022266,2]
[378052418,1754702967809,-985.9,0.00022266,2]
[378052419,1754702967836,-460.0,0.00022266,2]
[378052420,1754702967862,-460.0,0.00022266,2]
[378052421,1754702967883,-559.86,0.00022266,2]
[378052422,1754702967905,-460.0,0.00022266,2]
[378052423,1754702967926,-398.53,0.00022266,2]
[378052424,1754702967947,-460.0,0.00022266,2]
[378052425,1754702967970,-460.0,0.00022266,2]
[378052426,1754702967992,-460.0,0.00022266,2]
[378052427,1754702968013,-460.0,0.00022266,2]
[378052428,1754702968033,-283.57,0.00022267,2]
[378052429,1754702968056,-411.68539762,0.00022267,2]
[378052430,1754702968075,-460.0,0.00022267,2]
[378052431,1754702968095,-460.57110541,0.00022267,2]
[378052432,1754702968114,-461.54442385,0.00022267,2]
[378052433,1754702968135,-460.0,0.00022267,2]
[378052434,1754702968154,-460.0,0.00022267,2]
[378052435,1754702968175,-460.0,0.00022267,2]
[378052436,1754702968195,-460.0,0.00022267,2]
[378052437,1754702968215,-462.52544459,0.00022267,2]
[378052438,1754702968234,-460.0,0.00022267,2]
[378052439,1754702968253,-359.47971724,0.00022267,2]
[378052440,1754702968273,-460.0,0.00022267,2]
[378052441,1754702968292,-527.82,0.00022267,2]
[378052442,1754702968311,-150.83327588,0.00022267,2]
[378052443,1754702968331,-460.0,0.00022267,2]
[378052444,1754702968351,-460.0,0.00022267,2]
[378052445,1754702968372,-460.0,0.00022267,2]
[378052446,1754702968395,-523.19,0.00022267,2]
[378052447,1754702968415,-460.0,0.00022267,2]
[378052448,1754702968438,-460.0,0.00022267,2]
[378052449,1754702968459,-460.0,0.00022267,2]
[378052450,1754702968479,-460.0,0.00022267,2]
[378052451,1754702968500,-460.0,0.00022267,2]
[378052452,1754702968520,-460.0,0.00022267,2]
[378052453,1754702968546,-460.0,0.00022267,2]
[378052454,1754702968565,-460.0,0.00022267,2]
[378052455,1754702968585,-460.0,0.00022267,2]
[378052456,1754702968606,-460.0,0.00022267,2]
[378052457,1754702968626,-460.0,0.00022267,2]
[378052458,1754702968646,-460.0,0.00022267,2]
[378052459,1754702968665,-172.66985488,0.00022267,2]
[378052460,1754702968686,-485.98220917,0.00022267,2]
[378052461,1754702968706,-460.0,0.00022267,2]
[378052462,1754702968727,-483.8,0.00022267,2]
[378052463,1754702968747,-460.0,0.00022267,2]
[378052464,1754702968769,-460.0,0.00022267,2]
[378052465,1754702968790,-460.0,0.00022267,2]
[378052466,1754702968810,-460.0,0.00022267,2]
[378052467,1754702968830,-460.0,0.00022267,2]
[378052468,1754702968850,-460.0,0.00022267,2]
[378052469,1754702968870,-473.12,0.00022267,2]
[378052470,1754702968890,-460.0,0.00022267,2]
[378052471,1754702968909,-460.0,0.00022267,2]
[378052472,1754702968929,-460.0,0.00022267,2]
[378052473,1754702968949,-460.0,0.00022267,2]
[378052474,1754702968971,-460.0,0.00022267,2]
[378052475,1754702968992,-531.82300881,0.00022267,2]
[378052476,1754702969012,-460.0,0.00022267,2]
[378052477,1754702969032,-460.0,0.00022267,2]
[378052478,1754702969053,-151.0,0.00022267,2]
[378052480,1754702969076,-151.0,0.00022267,2]
[378052481,1754702969095,-151.0,0.00022267,2]
[378052482,1754702969115,-216.25198769,0.00022267,2]
[378052484,1754702969134,-151.0,0.00022267,2]
[378052485,1754702969154,-74.98040039,0.00022267,2]
[378052487,1754703010004,5351.97505659,0.00021406,2]
[378052488,1754703010032,19548.02494341,0.00021406,2]
[378052516,1754703032222,-207.35775175,0.00021968,2]
[378052517,1754703032232,-68.48773965,0.00022166,2]
[378052518,1754703032252,-111.36605676,0.00022166,2]
[378052519,1754703032261,-263.30164143,0.00022166,2]
[378052523,1754703038040,-25.53389653,0.00022166,2]
[378052525,1754703038050,-500.0,0.00022173,2]
[378052527,1754703038062,-500.0,0.00022173,2]
[378052528,1754703038073,-504.2256451,0.00022173,2]
[378052529,1754703038085,-900.74,0.0002219,10]
[378052530,1754703038098,-750.62,0.0002219,10]
[378052531,1754703038109,-322.48,0.0002219,3]
[378052532,1754703038121,-625.52,0.0002219,10]
[378052533,1754703038131,-161.24,0.0002219,3]
[378052534,1754703038141,-300.0,0.00022199,2]
[378052535,1754703038153,-316.0,0.00022199,2]
[378052536,1754703038164,-444.8101017,0.00022199,2]
[378052537,1754703038176,-1061.10565937,0.00022199,2]
[378052538,1754703038188,-1061.10565937,0.00022199,2]
[378052539,1754703038198,-1061.10565937,0.00022199,2]
[378052540,1754703038208,-1061.10565937,0.00022199,2]
[378052541,1754703038218,-1061.10565937,0.00022199,2]
[378052542,1754703038229,-1061.10565937,0.00022199,2]
[378052543,1754703038239,-1061.10565937,0.00022199,2]
[378052544,1754703038250,-1061.10565937,0.00022199,2]
[378052545,1754703038261,-1061.10565937,0.00022199,2]
[378052546,1754703038271,-1061.10565937,0.00022199,2]
[378052547,1754703038282,-1061.10565937,0.00022199,2]
[378052548,1754703038292,-1061.10565937,0.00022199,2]
[378052549,1754703038303,-1061.10565937,0.00022199,2]
[378052550,1754703038314,-1061.10565937,0.00022199,2]
[378052551,1754703038324,-286.19190141,0.00022199,2]
[378052552,1754703038335,-221.60731919,0.00022199,2]
[378052553,1754703038345,-500.0,0.00022199,2]
[378052554,1754703038356,-178.7479615,0.00022199,2]
[378052555,1754703038366,-169.33385849,0.00022199,2]
[378052556,1754703038377,-1061.10565937,0.00022199,2]
[378052557,1754703038388,-1061.10565937,0.00022199,2]
[378052558,1754703038398,-1061.10565937,0.00022199,2]
[378052559,1754703038408,-1061.10565937,0.00022199,2]
[378052560,1754703038419,-1061.10565937,0.00022199,2]
[378052561,1754703038429,-10251.11406222,0.000222,2]
[378052562,1754703038443,-29629.05053657,0.000222,2]
[378052563,1754703039450,-398.73,0.000222,2]
[378052564,1754703039461,-454.651226,0.000222,2]
[378052565,1754703039473,-682.81930476,0.000222,2]
[378052566,1754703039485,-418.70153219,0.000222,2]
[378052567,1754703039496,-530.64083125,0.000222,2]
[378052568,1754703039507,-3632.08997363,0.000222,2]
[378052569,1754703039519,-388437.60271154,0.000222,2]
[378052570,1754703039530,-8179.06859671,0.000222,2]
[378052571,1754703039541,-2714.73805655,0.000222,2]
[378052572,1754703039553,-7046.23788662,0.000222,2]
[378052597,1754703040127,-909.52850048,0.000222,2]
[378052621,1754703046073,-521.26,0.0002219,10]
[378052622,1754703046083,-483.72,0.0002219,3]
[378052623,1754703046092,-679.10762201,0.00022199,2]
[378052624,1754703046101,-679.10762201,0.00022199,2]
[378052625,1754703046110,-679.10762201,0.00022199,2]
[378052626,1754703046119,-679.10762201,0.00022199,2]
[378052627,1754703046129,-679.10762201,0.00022199,2]
[378052628,1754703046138,-679.10762201,0.00022199,2]
[378052629,1754703046147,-679.10762201,0.00022199,2]
[378052630,1754703046156,-679.10762201,0.00022199,2]
[378052631,1754703046166,-679.10762201,0.00022199,2]
[378052632,1754703046175,-679.10762201,0.00022199,2]
[378052633,1754703046184,-679.10762201,0.00022199,2]
[378052634,1754703046193,-679.10762201,0.00022199,2]
[378052635,1754703046202,-679.10762201,0.00022199,2]
[378052636,1754703046211,-679.10762201,0.00022199,2]
[378052637,1754703046220,-240661.82960481,0.000222,2]
[378052638,1754703046243,-1855.01805307,0.000222,2]
[378052639,1754703066521,1952.0,0.00031665,30]
[378052640,1754703142916,3694.97112165,0.000199,2]
[378052641,1754703224283,706.10726712,0.00031659,30]
[378052642,1754703261515,162.217362,0.00013699,2]
[378052644,1754703278834,2141.41598694,0.00021,2]
[378052645,1754703278858,10211.58401306,0.00021,2]
[378052646,1754703286759,211.151487,0.0002137,2]
[378052647,1754703349131,3727.70377171,0.000199,2]
[378052649,1754703370123,168.3764654,0.00021184,2]
[378052650,1754703374066,1267.5717627,0.00021354,2]
[378052651,1754703396670,178.8,0.00031659,60]
[378052652,1754703524275,3603.47390242,0.000199,2]
[378052653,1754703614133,964.11,0.000151,2]
[378052654,1754703647026,1740.394737,0.00031666,120]
[378052655,1754703699948,3485.9562435,0.000199,2]
[378052656,1754703854443,165.66,0.00030137,120]
[378052657,1754703895080,3369.75770205,0.000199,2]
[378052658,1754703931343,5290.31465216,0.0002115,2]
[378052659,1754703931367,19609.68534784,0.0002115,2]
[378052660,1754703940642,5000.0,0.0002145,2]
[378052661,1754703956111,5000.0,0.0002145,2]
[378052662,1754703972066,2690.31465216,0.0002145,2]
[378052663,1754703972095,2309.68534784,0.0002145,2]
[378052664,1754704042509,361.54585342,0.0001935,2]
[378052665,1754704045140,191.100453,0.00021142,2]
[378052666,1754704047123,-855.33880645,0.00021655,2]
[378052667,1754704088175,3228.91275176,0.000199,2]
[378052668,1754704090138,965.57,0.0003013,120]
[378052670,1754704154086,-205.61961584,0.00021555,2]
[378052671,1754704154111,-3228.91275168,0.00021655,2]
[378052672,1754704154129,-160.0,0.00021655,2]
[378052673,1754704154149,-184.64908094,0.0002199,2]
[378052674,1754704154168,-205.61961584,0.00022065,2]
[378052675,1754704154304,-187.89145939,0.00022071,2]
[378052676,1754704154325,-308.2409047,0.00022071,2]
[378052677,1754704154346,-346.36585108,0.00022097,2]
[378052678,1754704154366,-300.0,0.00022154,2]
[378052679,1754704154386,-561.16,0.00022155,3]
[378052680,1754704154406,-280.58,0.00022155,3]
[378052681,1754704154426,-841.79,0.00022155,3]
[378052682,1754704154445,-3945.04613426,0.00022162,2]
[378052683,1754704154465,-1005.28845265,0.00022164,2]
[378052684,1754704154484,-311.36707119,0.00022164,2]
[378052685,1754704154504,-460.0,0.00022164,2]
[378052686,1754704154524,-460.0,0.00022164,2]
[378052687,1754704154544,-460.0,0.00022164,2]
[378052688,1754704154565,-460.0,0.00022164,2]
[378052689,1754704154588,-1638.53,0.00022164,2]
[378052690,1754704154609,-4174.33,0.00022164,2]
[378052691,1754704154630,-169093.92619614,0.00022165,2]
[378052748,1754704232347,-434.39,0.00022155,10]
[378052750,1754704232358,-361.99,0.00022155,10]
[378052753,1754704232371,-301.66,0.00022155,10]
[378052755,1754704232383,-300.0,0.00022159,2]
[378052758,1754704232396,-300.0,0.00022159,2]
[378052760,1754704232409,-300.0,0.00022159,2]
[378052762,1754704232421,-300.0,0.00022159,2]
[378052766,1754704232433,-1200.0,0.00022159,2]
[378052768,1754704232446,-1385.27810187,0.0002216,2]
[378052884,1754704238418,-4102.16209663,0.0002216,2]
[378052890,1754704238472,-1229.92321603,0.0002216,2]
[378052892,1754704238526,-67046.6615698,0.0002216,2]
[378052893,1754704238538,-865.84,0.00022161,3]
[378052894,1754704238549,-599.77935202,0.00022164,2]
[378052895,1754704238561,-460.0,0.00022164,2]
[378052896,1754704238572,-460.0,0.00022164,2]
[378052897,1754704238583,-460.0,0.00022164,2]
[378052898,1754704238595,-460.0,0.00022164,2]
[378052899,1754704238606,-460.0,0.00022164,2]
[378052900,1754704238617,-461.870825,0.00022164,2]
[378052901,1754704238628,-517.74115662,0.00022164,2]
[378052902,1754704238639,-842.72,0.00022164,2]
[378052903,1754704238650,-1204.44,0.00022164,2]
[378052904,1754704238661,-460.0,0.00022164,2]
[378052905,1754704238672,-461.80266231,0.00022164,2]
[378052906,1754704238688,-460.0,0.00022164,2]
[378052907,1754704238700,-463.79475646,0.00022164,2]
[378052908,1754704238713,-470.15859138,0.00022164,2]
[378052909,1754704238725,-1498.59,0.00022164,2]
[378052910,1754704238737,-474.43710767,0.00022164,2]
[378052911,1754704238750,-460.0,0.00022164,2]
[378052912,1754704238763,-460.0,0.00022164,2]
[378052913,1754704238775,-38788.08487585,0.00022165,2]
[378052914,1754704238787,-674.85,0.00022165,2]
[378052915,1754704238800,-217.95694983,0.0002217,2]
[378052916,1754704238812,-38030.74873039,0.00022171,2]
[378052917,1754704238821,-520.03191789,0.00022173,2]
[378052918,1754704238836,-501.7372781,0.00022173,2]
[378052919,1754704238848,-500.0,0.00022173,2]
[378052920,1754704238859,-500.0,0.00022173,2]
[378052921,1754704238868,-501.97459951,0.00022173,2]
[378052922,1754704238878,-500.0,0.00022173,2]
[378052923,1754704239060,-500.0,0.00022173,2]
[378052924,1754704239069,-500.0,0.00022173,2]
[378052925,1754704239079,-500.0,0.00022173,2]
[378052926,1754704239092,-503.32533777,0.00022173,2]
[378052927,1754704239102,-500.0,0.00022196,2]
[378052928,1754704239111,-460.0,0.00022196,2]
[378052929,1754704239121,-467.2065682,0.00022196,2]
[378052930,1754704239130,-467.94876595,0.00022196,2]
[378052931,1754704239139,-469.1210066,0.00022196,2]
[378052932,1754704239148,-481.52707669,0.00022196,2]
[378052933,1754704239157,-468.60797139,0.00022196,2]
[378052934,1754704239167,-460.0,0.00022196,2]
[378052935,1754704239175,-460.0,0.00022196,2]
[378052936,1754704239185,-460.0,0.00022196,2]
[378052937,1754704239195,-470.81215098,0.00022196,2]
[378052938,1754704239204,-460.0,0.00022196,2]
[378052939,1754704239213,-460.0,0.00022196,2]
[378052940,1754704239222,-460.0,0.00022196,2]
[378052941,1754704239231,-472.57996641,0.00022196,2]
[378052942,1754704239240,-460.0,0.00022196,2]
[378052943,1754704239250,-462.2223395,0.00022196,2]
[378052944,1754704239259,-475.27009664,0.00022196,2]
[378052945,1754704239268,-467.66548555,0.00022196,2]
[378052946,1754704239277,-460.0,0.00022196,2]
[378052947,1754704239287,-463.43850844,0.00022196,2]
[378052948,1754704239296,-460.0,0.00022196,2]
[378052949,1754704239306,-460.0,0.00022196,2]
[378052950,1754704239315,-468.03086345,0.00022196,2]
[378052951,1754704239324,-460.0,0.00022196,2]
[378052952,1754704239334,-460.0,0.00022196,2]
[378052953,1754704239343,-383.75744206,0.00022196,2]
[378052954,1754704239352,-460.0,0.00022196,2]
[378052955,1754704239361,-460.0,0.00022196,2]
[378052956,1754704239370,-465.91217195,0.00022196,2]